bitfinex/quotes_BTCUSD_20241002
["timestamp","ask_amount","ask_price","bid_price","bid_amount"]
[1727853997415,0.00264,61759.0,61758.0,0.77316891]
[1727853997416,0.00364,61759.0,61758.0,0.77316891]
[1727853997846,0.00264,61759.0,61758.0,0.75916891]
[1727853998266,0.00364,61759.0,61758.0,0.77316891]
[1727853999351,0.26833605,61770.0,61759.0,0.005]
[1727853999574,0.26833605,61770.0,61769.0,0.55645146]
[1727853999794,0.24296023,61770.0,61769.0,0.71914591]
[1727854000053,0.24296023,61777.0,61776.0,0.20882]
[1727854000271,0.24296023,61777.0,61776.0,0.52383191]
[1727854000492,0.24296023,61784.0,61783.0,0.129905]
[1727854000926,0.02701171,61788.0,61785.0,0.12948]
[1727854001135,0.02701171,61788.0,61787.0,0.00042]
[1727854002291,0.00164,61788.0,61787.0,0.00042]
[1727854002520,0.131115,61788.0,61786.0,0.00042]
[1727854002735,0.00164,61788.0,61785.0,0.02342]
[1727854003168,0.129477,61787.0,61785.0,0.02342]
[1727854003396,0.00164,61788.0,61785.0,0.02342]
[1727854003397,0.00164,61788.0,61785.0,0.00042]
[1727854003643,0.129477,61787.0,61785.0,0.00042]
[1727854004117,0.00264,61788.0,61785.0,0.00042]
[1727854004332,0.00264,61788.0,61785.0,0.02342]
[1727854004541,0.132115,61788.0,61785.0,0.02342]
[1727854004969,0.132115,61788.0,61785.0,0.1299]
[1727854005385,0.02801147,61788.0,61786.0,0.023]
[1727854005600,0.02701147,61788.0,61786.0,0.023]
[1727854006655,0.02701147,61788.0,61786.0,0.02342]
[1727854008403,0.02701147,61788.0,61787.0,0.023]
[1727854008847,0.02701147,61788.0,61786.0,0.00042]
[1727854009541,0.02801147,61788.0,61786.0,0.00042]
[1727854009958,0.15648647,61788.0,61786.0,0.00042]
[1727854010164,0.15748647,61788.0,61786.0,0.00042]
[1727854011448,0.02801147,61788.0,61786.0,0.00042]
[1727854011654,0.02801147,61788.0,61787.0,0.00042]
[1727854012504,0.02701147,61788.0,61787.0,0.00042]
[1727854012707,0.15648547,61788.0,61787.0,0.00042]
[1727854012911,0.15748547,61788.0,61787.0,0.00042]
[1727854013525,0.02801147,61788.0,61787.0,0.00042]
[1727854015402,0.02801147,61788.0,61787.0,0.02342]
[1727854016069,0.02801147,61788.0,61787.0,0.152897]
[1727854017201,0.00164,61788.0,61787.0,0.25233335]
[1727854017635,0.00164,61788.0,61787.0,0.49569145]
[1727854017876,0.00164,61788.0,61787.0,0.59369145]
[1727854018103,0.00164,61788.0,61787.0,0.59569145]
[1727854018737,0.00164,61788.0,61787.0,0.59469145]
[1727854019645,0.00164,61788.0,61787.0,0.59569145]
[1727854019885,0.00164,61788.0,61787.0,0.59269145]
[1727854020109,0.00164,61788.0,61787.0,0.61569145]
[1727854025161,0.00164,61788.0,61787.0,0.62069145]
[1727854026071,0.00164,61788.0,61787.0,0.62269145]
[1727854027181,0.00164,61788.0,61787.0,0.61069145]
[1727854027397,0.00164,61788.0,61787.0,0.62469145]
[1727854028700,0.00164,61788.0,61787.0,0.61169145]
[1727854028921,0.00164,61788.0,61787.0,0.62569145]
[1727854030483,0.00164,61788.0,61787.0,0.62769145]
[1727854031628,0.00164,61788.0,61787.0,0.62569145]
[1727854032556,0.00164,61788.0,61787.0,0.62769145]
[1727854032799,0.00164,61788.0,61787.0,0.42649145]
[1727854034271,0.00164,61788.0,61787.0,0.52649145]
[1727854041915,0.00164,61788.0,61787.0,0.44559145]
[1727854049646,0.00164,61788.0,61787.0,0.59590891]
[1727854057655,0.00164,61788.0,61787.0,0.54397523]
[1727854059621,0.00164,61788.0,61787.0,0.62367523]
[1727854062166,0.00164,61788.0,61787.0,0.71977523]
[1727854070144,0.02700605,61791.0,61787.0,0.71977523]
[1727854070145,0.02700605,61791.0,61790.0,0.13447]
[1727854070367,0.00164,61801.0,61799.0,0.334471]
[1727854070601,0.00164,61801.0,61799.0,0.59754923]
[1727854070839,0.00164,61801.0,61799.0,0.65571767]
[1727854071281,0.00164,61801.0,61799.0,0.59954923]
[1727854071497,0.00164,61801.0,61799.0,0.64898377]
[1727854072137,0.00164,61801.0,61799.0,0.66098377]
[1727854072356,0.00164,61801.0,61799.0,0.64898377]
[1727854072577,0.07267512,61817.0,61799.0,0.64898377]
[1727854072578,0.24296023,61814.0,61813.0,0.358841]
[1727854072827,0.19380032,61825.0,61820.0,0.129407]
[1727854072828,0.04845008,61825.0,61820.0,0.129407]
[1727854073050,0.24296023,61826.0,61820.0,0.44391977]
[1727854073051,0.29141031,61826.0,61820.0,0.44391977]
[1727854073291,0.24296023,61826.0,61820.0,0.44391977]
[1727854073957,0.24296023,61826.0,61820.0,0.45191977]
[1727854074382,0.24296023,61826.0,61820.0,0.45591977]
[1727854074601,0.24296023,61826.0,61820.0,0.47933977]
[1727854074831,0.24296023,61826.0,61820.0,0.32952145]
[1727854075282,0.24296023,61826.0,61820.0,0.31752145]
[1727854075509,0.24296023,61826.0,61820.0,0.32952145]
[1727854075731,0.24296023,61826.0,61820.0,0.34352145]
[1727854076156,0.24296023,61826.0,61820.0,0.164827]
[1727854076596,0.077,61830.0,61820.0,0.164827]
[1727854076833,0.077,61830.0,61820.0,0.34252145]
[1727854077289,0.077,61830.0,61820.0,0.33052145]
[1727854077538,0.077,61830.0,61820.0,0.34252145]
[1727854079291,0.077,61830.0,61820.0,0.177827]
[1727854079555,0.206387,61830.0,61820.0,0.177827]
[1727854080073,0.077,61830.0,61820.0,0.177827]
[1727854080557,0.0269938,61821.0,61820.0,0.34575613]
[1727854080853,0.0269938,61821.0,61820.0,0.34252145]
[1727854091186,0.0269938,61821.0,61820.0,0.49233977]
[1727854091616,0.0269938,61821.0,61820.0,0.44082306]
[1727854092058,0.0269938,61821.0,61820.0,0.177827]
[1727854092331,0.1039938,61821.0,61820.0,0.177827]
[1727854092554,0.07864,61821.0,61820.0,0.177827]
[1727854093260,0.07864,61821.0,61820.0,0.27612861]
[1727854093261,0.00164,61821.0,61820.0,0.27612861]
[1727854101624,0.00164,61821.0,61820.0,0.44082306]
[1727854105629,0.00164,61821.0,61820.0,0.54082306]
[1727854105855,0.00164,61821.0,61820.0,0.71992306]
[1727854106529,0.02699041,61821.0,61820.0,0.71992306]
[1727854106962,0.24296023,61831.0,61830.0,0.331907]
[1727854107178,0.24296023,61831.0,61830.0,0.59490306]
[1727854107392,0.24459823,61839.0,61838.0,0.12979]
[1727854107823,0.001638,61839.0,61838.0,0.00042]
[1727854108504,0.001638,61839.0,61838.0,0.12979]
[1727854108948,0.001638,61839.0,61838.0,0.16179]
[1727854110038,0.001638,61839.0,61838.0,0.03242]
[1727854110253,0.02698652,61839.0,61838.0,0.02742]
[1727854110473,0.02698652,61839.0,61838.0,0.15679]
[1727854110687,0.02698652,61839.0,61838.0,0.15579]
[1727854111114,0.02698652,61839.0,61838.0,0.15479]
[1727854111352,0.02698652,61839.0,61838.0,0.15579]
[1727854111807,0.02698652,61839.0,61838.0,0.02542]
[1727854112017,0.02698652,61839.0,61838.0,0.00042]
[1727854112231,0.02698652,61839.0,61838.0,0.02642]
[1727854112652,0.02698652,61839.0,61838.0,0.02542]
[1727854113384,0.02698652,61839.0,61838.0,0.02342]
[1727854113631,0.02698652,61839.0,61838.0,0.15979]
[1727854113882,0.02698652,61839.0,61838.0,0.16579]
[1727854114102,0.02698652,61839.0,61838.0,0.15279]
[1727854114536,0.02698652,61839.0,61838.0,0.15879]
[1727854114967,0.02698652,61839.0,61838.0,0.15779]
[1727854115269,0.02698652,61839.0,61838.0,0.15279]
[1727854115324,0.07530833,61839.0,61838.0,0.15279]
[1727854115525,0.07530833,61839.0,61838.0,0.15579]
[1727854115734,0.07530833,61839.0,61838.0,0.16179]
[1727854116314,0.02698652,61839.0,61838.0,0.16179]
[1727854116922,0.02698652,61839.0,61838.0,0.15279]
[1727854117443,0.09960808,61839.0,61838.0,0.15779]
[1727854117598,0.09960808,61839.0,61838.0,0.15579]
[1727854117805,0.09960808,61839.0,61838.0,0.1529032]
[1727854118016,0.09960808,61839.0,61838.0,0.1659032]
[1727854118622,0.09523057,61839.0,61838.0,0.1529032]
[1727854118822,0.09523057,61839.0,61838.0,0.1589032]
[1727854119043,0.07262156,61839.0,61838.0,0.1639032]
[1727854119494,0.04841556,61839.0,61838.0,0.1639032]
[1727854120331,0.04841556,61840.0,61839.0,0.152788]
[1727854121316,0.04841103,61840.0,61839.0,0.152788]
[1727854121455,0.06533012,61840.0,61839.0,0.152788]
[1727854121687,0.06533012,61840.0,61839.0,0.157788]
[1727854121915,0.06533012,61840.0,61839.0,0.161788]
[1727854122269,0.09067846,61840.0,61839.0,0.161788]
[1727854122472,0.04226743,61840.0,61839.0,0.161788]
[1727854123116,0.04226743,61840.0,61839.0,0.16502185]
[1727854123117,0.02534834,61840.0,61839.0,0.16502185]
[1727854126163,0.02534834,61840.0,61839.0,0.16002185]
[1727854126848,0.02534834,61840.0,61839.0,0.15960185]
[1727854127080,0.02534834,61840.0,61839.0,0.152368]
[1727854127296,0.02534834,61840.0,61839.0,0.15560181]
[1727854127506,0.02534834,61840.0,61839.0,0.15760181]
[1727854127715,0.02534834,61840.0,61839.0,0.15960181]
[1727854128213,0.02534834,61840.0,61839.0,0.15762181]
[1727854128426,0.02534834,61840.0,61839.0,0.16012181]
[1727854128637,0.02534834,61840.0,61839.0,0.16002181]
[1727854129100,0.02534834,61840.0,61839.0,0.15952181]
[1727854129345,0.02534834,61840.0,61839.0,0.15912181]
[1727854129560,0.02534834,61840.0,61839.0,0.15902181]
[1727854129778,0.02616734,61840.0,61839.0,0.25726049]
[1727854129989,0.02616734,61840.0,61839.0,0.25666049]
[1727854130209,0.02616734,61840.0,61839.0,0.25636049]
[1727854130419,0.02616734,61840.0,61839.0,0.25626049]
[1727854130909,0.02616734,61840.0,61839.0,0.25586049]
[1727854131131,0.02616734,61840.0,61839.0,0.25536049]
[1727854131356,0.02616734,61840.0,61839.0,0.41995494]
[1727854131572,0.02616734,61840.0,61839.0,0.41672113]
[1727854131792,0.02616734,61840.0,61839.0,0.41632113]
[1727854132025,0.02616734,61840.0,61839.0,0.41582113]
[1727854132244,0.02616734,61840.0,61839.0,0.41272113]
[1727854132463,0.02616734,61840.0,61839.0,0.41772113]
[1727854133745,0.02616734,61840.0,61839.0,0.41572113]
[1727854133963,0.02616734,61840.0,61839.0,0.41972113]
[1727854138873,0.04308643,61840.0,61839.0,0.41972113]
[1727854141317,0.04308643,61840.0,61839.0,0.32148245]
[1727854141508,0.04308643,61840.0,61839.0,0.32312045]
[1727854147173,0.04308643,61840.0,61839.0,0.158426]
[1727854147613,0.11570297,61840.0,61839.0,0.158426]
[1727854147835,0.11576198,61840.0,61839.0,0.158426]
[1727854148275,0.04308643,61840.0,61839.0,0.158426]
[1727854148493,0.1157808,61840.0,61839.0,0.158426]
[1727854148712,0.04308643,61840.0,61839.0,0.158426]
[1727854149409,0.1157808,61840.0,61839.0,0.158426]
[1727854149882,0.04308643,61840.0,61839.0,0.158426]
[1727854150327,0.13998717,61840.0,61839.0,0.158426]
[1727854150779,0.1158147,61840.0,61839.0,0.158426]
[1727854151261,0.04308643,61840.0,61839.0,0.59549307]
[1727854151507,0.04308643,61840.0,61839.0,0.59225913]
[1727854151731,0.04308643,61840.0,61839.0,0.69225913]
[1727854151957,0.000819,61840.0,61839.0,0.69225913]
[1727854152184,0.000819,61840.0,61839.0,0.68725913]
[1727854152413,0.000819,61840.0,61839.0,0.69025913]
[1727854152638,0.000819,61840.0,61839.0,0.70325913]
[1727854152849,0.000819,61840.0,61839.0,0.69625913]
[1727854153304,0.000819,61840.0,61839.0,0.71025913]
[1727854156426,0.02616395,61840.0,61839.0,0.71025913]
[1727854159338,0.000819,61840.0,61839.0,0.71025913]
[1727854160273,0.000819,61840.0,61839.0,0.71525913]
[1727854164228,0.000819,61840.0,61839.0,0.34112045]
[1727854164488,0.000819,61840.0,61839.0,0.43935913]
[1727854165711,0.000819,61840.0,61839.0,0.53935913]
[1727854166561,0.02616495,61840.0,61839.0,0.53935913]
[1727854167257,0.02616495,61840.0,61839.0,0.276426]
[1727854167511,0.04307936,61840.0,61839.0,0.276426]
[1727854168276,0.01773341,61840.0,61839.0,0.276426]
[1727854175969,0.04307952,61840.0,61839.0,0.276426]
[1727854177886,0.01773341,61840.0,61839.0,0.276426]
[1727854181322,0.04307965,61840.0,61839.0,0.276426]
[1727854187975,0.04307965,61840.0,61839.0,0.356226]
[1727854188662,0.04307965,61840.0,61839.0,0.52092045]
[1727854190559,0.04307965,61840.0,61839.0,0.50692045]
[1727854190785,0.04307965,61840.0,61839.0,0.49392045]
[1727854191003,0.04307965,61840.0,61839.0,0.52192045]
[1727854206295,0.04307965,61840.0,61839.0,0.76488068]
[1727854206532,0.01773341,61840.0,61839.0,0.62632045]
[1727854207000,0.000819,61840.0,61839.0,0.62632045]
[1727854207233,0.000819,61840.0,61839.0,0.61432045]
[1727854207472,0.000819,61840.0,61839.0,0.62632045]
[1727854207701,0.000819,61840.0,61839.0,0.62015913]
[1727854207960,0.000819,61840.0,61839.0,0.59715913]
[1727854208184,0.000819,61840.0,61839.0,0.61115913]
[1727854208406,0.000819,61840.0,61839.0,0.62015913]
[1727854208639,0.000819,61840.0,61839.0,0.60615913]
[1727854208861,0.000819,61840.0,61839.0,0.62015913]
[1727854209090,0.000819,61840.0,61839.0,0.60615913]
[1727854209574,0.000819,61840.0,61839.0,0.50792045]
[1727854209821,0.000819,61840.0,61839.0,0.52635913]
[1727854209822,0.026163,61840.0,61839.0,0.52635913]
[1727854210051,0.026163,61840.0,61839.0,0.54035913]
[1727854210274,0.000819,61840.0,61839.0,0.54035913]
[1727854210508,0.000819,61840.0,61839.0,0.52635913]
[1727854210761,0.000819,61840.0,61839.0,0.54035913]
[1727854210991,0.000819,61840.0,61839.0,0.54235913]
[1727854211221,0.000819,61840.0,61839.0,0.52835913]
[1727854211916,0.000819,61840.0,61839.0,0.44212045]
[1727854212145,0.000819,61840.0,61839.0,0.52635913]
[1727854212401,0.000819,61840.0,61839.0,0.54035913]
[1727854213336,0.000819,61840.0,61839.0,0.51235913]
[1727854213557,0.000819,61840.0,61839.0,0.54035913]
[1727854214002,0.000819,61840.0,61839.0,0.52635913]
[1727854214457,0.000819,61840.0,61839.0,0.54035913]
[1727854214903,0.000819,61840.0,61839.0,0.52635913]
[1727854215360,0.000819,61840.0,61839.0,0.54035913]
[1727854216079,0.000819,61840.0,61839.0,0.44212045]
[1727854216307,0.000819,61840.0,61839.0,0.54035913]
[1727854217398,0.02616309,61840.0,61839.0,0.54035913]
[1727854218269,0.000819,61840.0,61839.0,0.54035913]
[1727854222528,0.01773341,61840.0,61839.0,0.54035913]
[1727854225460,0.04307815,61840.0,61839.0,0.54035913]
[1727854226164,0.04307815,61840.0,61839.0,0.44212045]
[1727854226383,0.04307815,61840.0,61839.0,0.54035913]
[1727854231840,0.04307815,61840.0,61839.0,0.54235913]
[1727854232295,0.04307815,61840.0,61839.0,0.54035913]
[1727854232519,0.04307815,61840.0,61839.0,0.51235913]
[1727854232736,0.04307815,61840.0,61839.0,0.52635913]
[1727854232961,0.04307815,61840.0,61839.0,0.54035913]
[1727854238179,0.04307815,61840.0,61839.0,0.44212045]
[1727854238626,0.04307815,61840.0,61839.0,0.54035913]
[1727854238857,0.04307815,61840.0,61839.0,0.63405913]
[1727854239002,0.04307815,61840.0,61839.0,0.63605913]
[1727854239632,0.04307815,61840.0,61839.0,0.60805913]
[1727854240082,0.04307815,61840.0,61839.0,0.62205913]
[1727854241257,0.04307815,61840.0,61839.0,0.63605913]
[1727854241906,0.04307815,61840.0,61839.0,0.69422271]
[1727854242146,0.04307815,61840.0,61839.0,0.77492271]
[1727854242391,0.04307815,61840.0,61839.0,0.77992271]
[1727854243135,0.001638,61849.0,61848.0,0.35100768]
[1727854243383,0.001638,61849.0,61848.0,0.51570213]
[1727854244581,0.001638,61849.0,61848.0,0.52870213]
[1727854245665,0.001638,61849.0,61848.0,0.54270213]
[1727854246631,0.001638,61849.0,61848.0,0.54970213]
[1727854247301,0.001638,61849.0,61848.0,0.58214213]
[1727854247524,0.04855897,61863.0,61862.0,0.12974]
[1727854247749,0.31579869,61865.0,61864.0,0.00042]
[1727854247750,0.24296023,61865.0,61864.0,0.00042]
[1727854247975,0.24296023,61865.0,61864.0,0.39266813]
[1727854248208,0.07283846,61868.0,61865.0,0.258626]
[1727854248472,0.04848518,61868.0,61867.0,0.09865868]
[1727854248714,0.04848518,61868.0,61867.0,0.39266213]
[1727854248986,0.13918518,61869.0,61867.0,0.26335313]
[1727854249222,0.13918518,61869.0,61868.0,0.29442145]
[1727854249460,0.0907,61869.0,61868.0,0.31742145]
[1727854250348,0.11603665,61869.0,61868.0,0.31742145]
[1727854250582,0.11603665,61869.0,61868.0,0.152727]
[1727854251028,0.16452183,61869.0,61868.0,0.152727]
[1727854251247,0.11603665,61869.0,61868.0,0.152727]
[1727854252387,0.11603665,61869.0,61868.0,0.160727]
[1727854252616,0.11603665,61869.0,61868.0,0.26796568]
[1727854254866,0.02533665,61869.0,61868.0,0.26796568]
[1727854255563,0.02533665,61869.0,61868.0,0.25896568]
[1727854255777,0.02533665,61869.0,61868.0,0.25696568]
[1727854255991,0.02533665,61869.0,61868.0,0.26296568]
[1727854256229,0.02533665,61869.0,61868.0,0.25696568]
[1727854256434,0.04842859,61873.0,61872.0,0.152719]
[1727854257361,0.1721,61874.0,61873.0,0.023]
[1727854257362,0.22050956,61874.0,61873.0,0.023]
[1727854257587,0.22050956,61874.0,61873.0,0.02342]
[1727854257588,0.22050428,61874.0,61873.0,0.02342]
[1727854257809,0.24471434,61874.0,61873.0,0.02342]
[1727854258043,0.24471434,61874.0,61873.0,0.00042]
[1727854258484,0.24471434,61874.0,61873.0,0.02342]
[1727854258943,0.24471434,61874.0,61870.0,0.00042]
[1727854259208,0.24471434,61874.0,61870.0,0.02342]
[1727854259209,0.0907,61871.0,61870.0,0.02342]
[1727854259628,0.13909909,61871.0,61870.0,0.02342]
[1727854260065,0.0907,61871.0,61870.0,0.02342]
[1727854260305,0.0907,61871.0,61870.0,0.00042]
[1727854260306,0.13909909,61871.0,61870.0,0.00042]
[1727854260545,0.13909909,61871.0,61870.0,0.152723]
[1727854260777,0.0907,61871.0,61870.0,0.152723]
[1727854261687,0.0907,61871.0,61870.0,0.155723]
[1727854262998,0.0907,61871.0,61870.0,0.156723]
[1727854263660,0.0907,61871.0,61870.0,0.02642]
[1727854264427,0.0907,61871.0,61870.0,0.02342]
[1727854264646,0.0907,61871.0,61870.0,0.129723]
[1727854265092,0.0907,61871.0,61870.0,0.023]
[1727854265326,0.0907,61871.0,61870.0,0.002]
[1727854265327,0.34980009,61871.0,61870.0,0.002]
[1727854265567,0.5049345,61871.0,61870.0,0.002]
[1727854265789,0.5049345,61871.0,61865.0,0.00042]
[1727854265790,0.301411,61866.0,61865.0,0.00042]
[1727854266472,0.220014,61865.0,61864.0,0.00042]
[1727854266957,0.0907,61865.0,61864.0,0.00042]
[1727854267186,0.220013,61865.0,61864.0,0.00042]
[1727854267413,0.13909129,61865.0,61864.0,0.00042]
[1727854267662,0.0907,61865.0,61864.0,0.00042]
[1727854267884,0.150013,61865.0,61864.0,0.00042]
[1727854268103,0.19940429,61865.0,61864.0,0.00042]
[1727854268329,0.19940532,61865.0,61864.0,0.00042]
[1727854268550,0.19940532,61865.0,61864.0,0.02442]
[1727854269603,0.001,61865.0,61864.0,0.153735]
[1727854271869,0.001,61865.0,61864.0,0.31842945]
[1727854272790,0.001,61865.0,61864.0,0.31742945]
[1727854273233,0.001,61865.0,61864.0,0.32642945]
[1727854273464,0.00082,61871.0,61870.0,0.129723]
[1727854273692,0.00082,61871.0,61870.0,0.4188886]
[1727854273917,0.00082,61871.0,61870.0,0.69515613]
[1727854274601,0.00082,61871.0,61870.0,0.69715613]
[1727854275295,0.00082,61873.0,61872.0,0.254719]
[1727854275537,0.00082,61873.0,61872.0,0.59854511]
[1727854275764,0.0002,61879.0,61878.0,0.55203468]
[1727854276026,0.0002,61879.0,61878.0,0.71672913]
[1727854276241,0.02552826,61879.0,61878.0,0.71672913]
[1727854276468,0.02552826,61879.0,61878.0,0.72172913]
[1727854277615,0.02552826,61879.0,61878.0,0.74472913]
[1727854278301,0.00082,61883.0,61882.0,0.236698]
[1727854278518,0.00082,61883.0,61882.0,0.72172113]
[1727854279455,0.0001,61888.0,61887.0,0.55201568]
[1727854279688,0.0001,61888.0,61887.0,0.71671013]
[1727854279920,0.0001,61888.0,61887.0,0.71471013]
[1727854280587,0.0001,61888.0,61887.0,0.73971013]
[1727854280797,0.0001,61888.0,61887.0,0.73771013]
[1727854281231,0.0001,61888.0,61887.0,0.75171013]
[1727854281460,0.0001,61888.0,61887.0,0.76771013]
[1727854282622,0.0001,61888.0,61887.0,0.76571013]
[1727854285586,0.02542463,61888.0,61887.0,0.76571013]
[1727854286290,0.02624363,61888.0,61887.0,0.76571013]
[1727854288166,0.000819,61901.0,61890.0,0.005]
[1727854288418,0.000819,61901.0,61898.0,0.57299268]
[1727854289789,0.000819,61901.0,61898.0,0.73768713]
[1727854290966,0.000819,61901.0,61898.0,0.75168713]
[1727854291423,0.0164188,61904.0,61903.0,0.40208268]
[1727854291641,0.0164188,61904.0,61903.0,0.56677713]
[1727854292952,0.0164188,61904.0,61903.0,0.58077713]
[1727854293893,0.0164188,61904.0,61903.0,0.59477713]
[1727854294342,0.0164188,61904.0,61903.0,0.56677713]
[1727854294585,0.0164188,61904.0,61903.0,0.58077713]
[1727854294820,0.0164188,61904.0,61903.0,0.59477713]
[1727854295040,0.04173744,61904.0,61903.0,0.59477713]
[1727854295313,0.04173744,61904.0,61903.0,0.58077713]
[1727854295525,0.04173744,61904.0,61903.0,0.59477713]
[1727854300169,0.04173744,61904.0,61903.0,0.44534845]
[1727854300382,0.04255644,61904.0,61903.0,0.44534845]
[1727854300604,0.0172378,61904.0,61903.0,0.44534845]
[1727854301076,0.0172378,61904.0,61903.0,0.34534845]
[1727854301355,0.0996378,61904.0,61903.0,0.180654]
[1727854301569,0.0172378,61904.0,61903.0,0.157654]
[1727854301790,0.0172378,61904.0,61903.0,0.47177713]
[1727854302761,0.0172378,61904.0,61903.0,0.56777713]
[1727854303009,0.0172378,61904.0,61903.0,0.59077713]
[1727854303500,0.0172378,61904.0,61903.0,0.69077713]
[1727854304446,0.0172378,61904.0,61903.0,0.67677713]
[1727854304657,0.0172378,61904.0,61903.0,0.69077713]
[1727854304884,0.04255666,61904.0,61903.0,0.69077713]
[1727854305102,0.04255666,61904.0,61903.0,0.67677713]
[1727854305397,0.04255666,61904.0,61903.0,0.66235713]
[1727854305609,0.04255666,61904.0,61903.0,0.59477713]
[1727854305820,0.04255666,61904.0,61903.0,0.59577866]
[1727854306936,0.04255666,61904.0,61903.0,0.58177866]
[1727854307159,0.04255666,61904.0,61903.0,0.43234998]
[1727854307371,0.04255666,61904.0,61903.0,0.41834998]
[1727854307596,0.0172378,61904.0,61903.0,0.41834998]
[1727854307821,0.0172378,61904.0,61903.0,0.44434998]
[1727854308040,0.0172378,61904.0,61903.0,0.43134998]
[1727854308290,0.0172378,61904.0,61903.0,0.14365553]
[1727854308474,0.0172378,61904.0,61903.0,0.01242153]
[1727854308720,0.0172378,61904.0,61903.0,0.15365553]
[1727854309152,0.0172378,61904.0,61903.0,0.14265553]
[1727854309835,0.01718857,61904.0,61903.0,0.03642153]
[1727854310060,0.01718857,61904.0,61903.0,0.16565553]
[1727854310947,0.01718857,61904.0,61903.0,0.17665553]
[1727854316474,0.01718857,61904.0,61903.0,0.49077866]
[1727854317104,0.01718857,61904.0,61903.0,0.47877866]
[1727854317540,0.01718857,61904.0,61903.0,0.49077866]
[1727854317748,0.01718857,61904.0,61903.0,0.47977866]
[1727854317981,0.01718857,61904.0,61903.0,0.49077866]
[1727854318214,0.01718857,61904.0,61903.0,0.46777866]
[1727854318429,0.01718857,61904.0,61903.0,0.48177866]
[1727854318644,0.01718857,61904.0,61903.0,0.49477866]
[1727854318851,0.01718857,61904.0,61903.0,0.48177866]
[1727854319063,0.01718857,61904.0,61903.0,0.56777866]
[1727854319314,0.01718857,61904.0,61903.0,0.57977866]
[1727854319540,0.01718857,61904.0,61903.0,0.56777866]
[1727854320806,0.01718857,61904.0,61903.0,0.58077866]
[1727854321079,0.01718857,61904.0,61903.0,0.59377866]
[1727854321512,0.01718857,61904.0,61903.0,0.58077866]
[1727854321948,0.01718857,61904.0,61903.0,0.59477866]
[1727854323025,0.04250872,61904.0,61903.0,0.59477866]
[1727854323924,0.04250872,61904.0,61903.0,0.58177866]
[1727854324122,0.04250872,61904.0,61903.0,0.56777866]
[1727854324310,0.04250872,61904.0,61903.0,0.58177866]
[1727854325343,0.04250872,61904.0,61903.0,0.59577866]
[1727854326232,0.04250872,61904.0,61903.0,0.28165553]
[1727854327964,0.04250872,61904.0,61903.0,0.05242153]
[1727854328174,0.04250872,61904.0,61903.0,0.05200153]
[1727854328175,0.01718857,61904.0,61903.0,0.05200153]
[1727854329541,0.2150737,61904.0,61903.0,0.05200153]
[1727854329757,0.67114256,61904.0,61903.0,0.02900153]
[1727854329973,0.39248188,61904.0,61903.0,0.02900153]
[1727854330191,0.66713728,61904.0,61903.0,0.02900153]
[1727854330411,0.39248188,61904.0,61903.0,0.01542153]
[1727854330632,0.39248188,61904.0,61903.0,0.00142153]
[1727854330848,0.39248188,61904.0,61903.0,0.01042153]
[1727854331068,0.22388188,61904.0,61903.0,0.04142153]
[1727854331290,0.13833933,61904.0,61903.0,0.17065553]
[1727854331515,0.34503264,61904.0,61903.0,0.17065553]
[1727854331748,0.34446773,61904.0,61903.0,0.04142153]
[1727854331963,0.34446773,61904.0,61903.0,0.17065553]
[1727854332218,0.32023022,61904.0,61903.0,0.17065553]
[1727854332442,0.22331326,61904.0,61903.0,0.17065553]
[1727854333129,0.22331326,61904.0,61903.0,0.04142153]
[1727854335179,0.24863587,61904.0,61903.0,0.04142153]
[1727854335610,0.24863587,61904.0,61903.0,0.04305953]
[1727854336298,0.49902234,61904.0,61903.0,0.04263953]
[1727854336511,0.37786787,61904.0,61903.0,0.04263953]
[1727854336954,0.55406787,61904.0,61903.0,0.04263953]
[1727854337181,0.52874526,61904.0,61903.0,0.04263953]
[1727854337624,0.52874526,61904.0,61903.0,0.01963953]
[1727854339133,0.52874526,61904.0,61903.0,0.04263953]
[1727854340355,0.55406964,61904.0,61903.0,0.04263953]
[1727854340849,0.55343532,61904.0,61903.0,0.04263953]
[1727854341105,0.55343532,61904.0,61903.0,0.01963953]
[1727854341370,0.258506,61894.0,61892.0,0.023]
[1727854341621,0.129255,61893.0,61892.0,0.023]
[1727854341883,0.17768074,61895.0,61892.0,0.023]
[1727854342386,0.04842874,61896.0,61892.0,0.152255]
[1727854342655,0.20188711,61898.0,61897.0,0.00042]
[1727854343846,0.20188711,61898.0,61892.0,0.37221523]
[1727854343847,0.07264311,61898.0,61896.0,0.00042]
[1727854344086,0.1776675,61897.0,61896.0,0.00042]
[1727854345062,0.07374679,61897.0,61896.0,0.00042]
[1727854345332,0.07474679,61897.0,61896.0,0.03542]
[1727854345580,0.02632529,61897.0,61896.0,0.03542]
[1727854345815,0.02632529,61897.0,61896.0,0.164669]
[1727854346585,0.02632529,61897.0,61896.0,0.03542]
[1727854346827,0.02732529,61897.0,61896.0,0.178669]
[1727854348006,0.02732529,61897.0,61896.0,0.180307]
[1727854349823,0.02732529,61897.0,61896.0,0.34500145]
[1727854350091,0.02732529,61897.0,61896.0,0.62540145]
[1727854350092,0.002,61897.0,61896.0,0.62540145]
[1727854352291,0.002,61897.0,61896.0,0.62740145]
[1727854353021,0.002,61897.0,61896.0,0.62540145]
[1727854353022,0.02732019,61897.0,61896.0,0.62540145]
[1727854353267,0.002,61897.0,61896.0,0.62540145]
[1727854354672,0.002,61897.0,61896.0,0.62740145]
[1727854354912,0.002,61897.0,61896.0,0.62540145]
[1727854357067,0.002,61897.0,61896.0,0.62740145]
[1727854357830,0.002,61897.0,61896.0,0.62540145]
[1727854360642,0.002,61897.0,61896.0,0.77483013]
[1727854361119,0.02732011,61897.0,61896.0,0.77483013]
[1727854361356,0.02732011,61897.0,61896.0,0.42200145]
[1727854362342,0.002,61897.0,61896.0,0.42200145]
[1727854362830,0.002,61897.0,61896.0,0.59443013]
[1727854363587,0.002,61897.0,61896.0,0.77483013]
[1727854363818,0.002,61897.0,61896.0,0.77683013]
[1727854364042,0.002,61897.0,61896.0,0.77483013]
[1727854364271,0.001,61897.0,61896.0,0.76083013]
[1727854365239,0.000819,61902.0,61901.0,0.252658]
[1727854365459,0.000819,61902.0,61901.0,0.41735245]
[1727854365944,0.0261388,61902.0,61901.0,0.41735245]
[1727854366648,0.0261388,61902.0,61901.0,0.43135245]
[1727854367143,0.0261388,61902.0,61901.0,0.44535245]
[1727854369104,0.0261388,61902.0,61901.0,0.42235245]
[1727854369358,0.000819,61902.0,61901.0,0.42235245]
[1727854370327,0.000819,61902.0,61901.0,0.44535245]